No. of Trans,Dept Family,Entity Name,Cert Date,Supplier Name,Reference,Gross Amt,Group/Department,Type of Expenditure - Subjective Codes
1,DCMS,EH,01/12/2014,Bilfinger Europa Fac Management Ltd,40086600,"5,763.00",Resources-Human Resources,Annual Cyclical Works-Building
2,DCMS,EH,01/12/2014,Bilfinger Europa Fac Management Ltd,40086600,"6,236.70",Resources-Human Resources,Office Security & Cash Collect
3,DCMS,EH,01/12/2014,Bilfinger Europa Fac Management Ltd,40086600,"9,765.28",Resources-Human Resources,Annual Cyclical Work M & E
4,DCMS,EH,01/12/2014,Bilfinger Europa Fac Management Ltd,40086600,192.94,Resources-Human Resources,Annual Cyclical Works-Building
5,DCMS,EH,01/12/2014,Bilfinger Europa Fac Management Ltd,40086600,"10,628.48",Resources-Human Resources,Office Cleaning
6,DCMS,EH,15/12/2014,Bond Dickinson LLP,40082379,9,National Advice & Information-Governance & Legal Department,Legal Fees
7,DCMS,EH,15/12/2014,Bond Dickinson LLP,40082379,"30,840.60",National Advice & Information-Governance & Legal Department,Legal Fees
8,DCMS,EH,05/12/2014,Bond Dickinson LLP,40085909,"27,758.40",National Advice & Information-Governance & Legal Department,Legal Fees
9,DCMS,EH,08/12/2014,British Gas,20065649,26.56,National Collections-Historic Properties Department,Electricity
10,DCMS,EH,08/12/2014,British Gas,20065649,25.64,National Collections-Local Management Agreements,Electricity
11,DCMS,EH,08/12/2014,British Gas,20065649,99.06,National Collections-Historic Properties Department,Electricity
12,DCMS,EH,08/12/2014,British Gas,20065649,15.28,National Collections-Historic Properties Department,Electricity
13,DCMS,EH,08/12/2014,British Gas,20065649,64.43,National Collections-Historic Properties Department,Electricity
14,DCMS,EH,08/12/2014,British Gas,20065649,31.14,National Collections-Historic Properties Department,Electricity
15,DCMS,EH,08/12/2014,British Gas,20065649,16,National Collections-Historic Properties Department,Electricity
16,DCMS,EH,08/12/2014,British Gas,20065649,13.03,National Collections-Historic Properties Department,Electricity
17,DCMS,EH,08/12/2014,British Gas,20065649,14.33,National Collections-Historic Properties Department,Electricity
18,DCMS,EH,08/12/2014,British Gas,20065649,53.66,National Collections-Historic Properties Department,Electricity
19,DCMS,EH,08/12/2014,British Gas,20065649,352.42,National Collections-Historic Properties Department,Electricity
20,DCMS,EH,08/12/2014,British Gas,20065649,231.57,National Collections-Historic Properties Department,Electricity
21,DCMS,EH,08/12/2014,British Gas,20065649,"21,724.10",National Collections-Historic Properties Department,Electricity
22,DCMS,EH,08/12/2014,British Gas,20065649,201.8,National Collections-Historic Properties Department,Electricity
23,DCMS,EH,08/12/2014,British Gas,20065649,18.58,National Collections-Historic Properties Department,Electricity
24,DCMS,EH,08/12/2014,British Gas,20065649,71.37,National Collections-Historic Properties Department,Electricity
25,DCMS,EH,08/12/2014,British Gas,20065649,57.77,National Collections-Historic Properties Department,Electricity
26,DCMS,EH,08/12/2014,British Gas,20065649,55.03,National Collections-Historic Properties Department,Electricity
27,DCMS,EH,08/12/2014,British Gas,20065649,26.11,National Collections-Historic Properties Department,Electricity
28,DCMS,EH,08/12/2014,British Gas,20065649,159.03,National Collections-Historic Properties Department,Electricity
29,DCMS,EH,08/12/2014,British Gas,20065649,163.36,National Collections-Historic Properties Department,Electricity
30,DCMS,EH,08/12/2014,British Gas,20065649,307.8,National Collections-Historic Properties Department,Electricity
31,DCMS,EH,08/12/2014,British Gas,20065649,61.7,National Collections-Historic Properties Department,Electricity
32,DCMS,EH,08/12/2014,British Gas,20065649,34.55,National Collections-Historic Properties Department,Electricity
33,DCMS,EH,08/12/2014,British Gas,20065649,204.57,National Collections-Historic Properties Department,Electricity
34,DCMS,EH,08/12/2014,British Gas,20065649,16.21,National Collections-Historic Properties Department,Electricity
35,DCMS,EH,08/12/2014,British Gas,20065649,16.87,National Collections-Property Maintenance Programme,Electricity
36,DCMS,EH,08/12/2014,British Gas,20065649,16.83,National Collections-Historic Properties Department,Electricity
37,DCMS,EH,08/12/2014,British Gas,20065649,19.77,National Collections-Historic Properties Department,Electricity
38,DCMS,EH,08/12/2014,British Gas,20065649,229.66,National Collections-Historic Properties Department,Electricity
39,DCMS,EH,08/12/2014,British Gas,20065649,29.9,National Collections-Historic Properties Department,Electricity
40,DCMS,EH,08/12/2014,British Gas,20065649,24.21,National Collections-Historic Properties Department,Electricity
41,DCMS,EH,08/12/2014,British Gas,20065649,516.84,National Collections-Historic Properties Department,Electricity
42,DCMS,EH,08/12/2014,British Gas,20065649,203.97,National Collections-Historic Properties Department,Electricity
43,DCMS,EH,08/12/2014,British Gas,20065649,11.09,National Collections-Historic Properties Department,Electricity
44,DCMS,EH,08/12/2014,British Gas,20065649,94.19,National Collections-Historic Properties Department,Electricity
45,DCMS,EH,08/12/2014,British Gas,20065649,23.9,National Collections-Historic Properties Department,Electricity
46,DCMS,EH,08/12/2014,British Gas,20065649,58.7,National Collections-Historic Properties Department,Electricity
47,DCMS,EH,08/12/2014,British Gas,20065649,"1,085.58",National Collections-Historic Properties Department,Electricity
48,DCMS,EH,08/12/2014,British Gas,20065649,227.71,National Collections-Historic Properties Department,Electricity
49,DCMS,EH,08/12/2014,British Gas,20065649,279.04,National Collections-Historic Properties Department,Electricity
50,DCMS,EH,08/12/2014,British Gas,20065649,"1,116.97",National Collections-Historic Properties Department,Electricity
51,DCMS,EH,08/12/2014,British Gas,20065900,66.03,National Collections-Historic Properties Department,Electricity
52,DCMS,EH,08/12/2014,British Gas,20065900,71.37,National Collections-Historic Properties Department,Electricity
53,DCMS,EH,08/12/2014,British Gas,20065900,45.85,National Collections-Historic Properties Department,Electricity
54,DCMS,EH,08/12/2014,British Gas,20065900,40.82,National Collections-Historic Properties Department,Electricity
55,DCMS,EH,08/12/2014,British Gas,20065900,54.18,National Collections-Historic Properties Department,Electricity
56,DCMS,EH,08/12/2014,British Gas,20065900,53.86,National Collections-Historic Properties Department,Electricity
57,DCMS,EH,08/12/2014,British Gas,20065900,170.66,National Collections-Historic Properties Department,Electricity
58,DCMS,EH,08/12/2014,British Gas,20065900,61.26,National Collections-Historic Properties Department,Electricity
59,DCMS,EH,08/12/2014,British Gas,20065900,47.41,National Collections-Historic Properties Department,Electricity
60,DCMS,EH,08/12/2014,British Gas,20065900,212.07,National Collections-Historic Properties Department,Electricity
61,DCMS,EH,08/12/2014,British Gas,20065900,168.55,National Collections-Historic Properties Department,Electricity
62,DCMS,EH,08/12/2014,British Gas,20065900,12.06,National Collections-Historic Properties Department,Electricity
63,DCMS,EH,08/12/2014,British Gas,20065900,216.99,National Collections-Historic Properties Department,Electricity
64,DCMS,EH,08/12/2014,British Gas,20065900,211.84,National Collections-Historic Properties Department,Electricity
65,DCMS,EH,08/12/2014,British Gas,20065900,83.16,National Collections-Historic Properties Department,Electricity
66,DCMS,EH,08/12/2014,British Gas,20065900,136.86,National Collections-Historic Properties Department,Electricity
67,DCMS,EH,08/12/2014,British Gas,20065900,45.59,National Collections-Historic Properties Department,Electricity
68,DCMS,EH,08/12/2014,British Gas,20065900,88.71,National Collections-Historic Properties Department,Electricity
69,DCMS,EH,08/12/2014,British Gas,20065900,33.9,National Collections-Historic Properties Department,Electricity
70,DCMS,EH,08/12/2014,British Gas,20065900,18.22,National Collections-Historic Properties Department,Electricity
71,DCMS,EH,08/12/2014,British Gas,20065900,369.81,National Collections-Historic Properties Department,Electricity
72,DCMS,EH,08/12/2014,British Gas,20065900,"1,636.14",National Collections-Historic Properties Department,Electricity
73,DCMS,EH,08/12/2014,British Gas,20065900,55.58,National Collections-Historic Properties Department,Electricity
74,DCMS,EH,08/12/2014,British Gas,20065900,140.36,National Collections-Historic Properties Department,Electricity
75,DCMS,EH,08/12/2014,British Gas,20065900,30.49,National Collections-Historic Properties Department,Electricity
76,DCMS,EH,08/12/2014,British Gas,20065900,273.56,National Collections-Historic Properties Department,Electricity
77,DCMS,EH,08/12/2014,British Gas,20065900,204.64,National Collections-Historic Properties Department,Electricity
78,DCMS,EH,08/12/2014,British Gas,20065900,428.82,National Collections-Historic Properties Department,Electricity
79,DCMS,EH,08/12/2014,British Gas,20065900,189.14,National Collections-Historic Properties Department,Electricity
80,DCMS,EH,08/12/2014,British Gas,20065900,82.61,National Collections-Historic Properties Department,Electricity
81,DCMS,EH,08/12/2014,British Gas,20065900,321.36,National Collections-Historic Properties Department,Electricity
82,DCMS,EH,08/12/2014,British Gas,20065900,68.46,National Collections-Historic Properties Department,Electricity
83,DCMS,EH,08/12/2014,British Gas,20065900,70.07,National Collections-Historic Properties Department,Electricity
84,DCMS,EH,08/12/2014,British Gas,20065900,341.84,National Collections-Historic Properties Department,Electricity
85,DCMS,EH,08/12/2014,British Gas,20065900,15.56,National Collections-Historic Properties Department,Electricity
86,DCMS,EH,08/12/2014,British Gas,20065900,36.05,National Collections-Historic Properties Department,Electricity
87,DCMS,EH,08/12/2014,British Gas,20065900,71.84,National Collections-Historic Properties Department,Electricity
88,DCMS,EH,08/12/2014,British Gas,20065900,529.64,National Collections-Historic Properties Department,Electricity
89,DCMS,EH,08/12/2014,British Gas,20065900,15.27,National Collections-Historic Properties Department,Electricity
90,DCMS,EH,08/12/2014,British Gas,20065900,102.04,National Collections-Historic Properties Department,Electricity
91,DCMS,EH,08/12/2014,British Gas,20065900,11.38,National Collections-Historic Properties Department,Electricity
92,DCMS,EH,08/12/2014,British Gas,20065900,12.54,National Collections-Historic Properties Department,Electricity
93,DCMS,EH,08/12/2014,British Gas,20065900,12.54,National Collections-Historic Properties Department,Electricity
94,DCMS,EH,08/12/2014,British Gas,20065900,24.26,National Collections-Historic Properties Department,Electricity
95,DCMS,EH,08/12/2014,British Gas,20065900,"20,021.67",National Collections-Historic Properties Department,Electricity
96,DCMS,EH,08/12/2014,British Gas,20065900,45.41,National Collections-Historic Properties Department,Electricity
97,DCMS,EH,08/12/2014,British Gas,20065900,14.71,National Collections-Historic Properties Department,Electricity
98,DCMS,EH,08/12/2014,British Gas,20065900,250.59,National Collections-Historic Properties Department,Electricity
99,DCMS,EH,08/12/2014,British Gas,20065900,12.01,National Collections-Historic Properties Department,Electricity
100,DCMS,EH,08/12/2014,British Gas,20065900,104.65,National Collections-Historic Properties Department,Electricity
101,DCMS,EH,08/12/2014,British Gas,20065900,236.06,National Collections-Historic Properties Department,Electricity
102,DCMS,EH,08/12/2014,British Gas,20065900,85.83,National Collections-Historic Properties Department,Electricity
103,DCMS,EH,08/12/2014,British Gas,20065900,174.39,National Collections-Historic Properties Department,Electricity
104,DCMS,EH,08/12/2014,British Gas,20065900,98.56,National Collections-Historic Properties Department,Electricity
105,DCMS,EH,08/12/2014,British Gas,20065900,360.55,National Collections-Historic Properties Department,Electricity
106,DCMS,EH,08/12/2014,British Gas,20065900,93.29,National Collections-Historic Properties Department,Electricity
107,DCMS,EH,08/12/2014,British Gas,20065900,33.21,National Collections-Historic Properties Department,Electricity
108,DCMS,EH,08/12/2014,British Gas,20065900,"1,856.52",National Collections-Historic Properties Department,Electricity
109,DCMS,EH,08/12/2014,British Gas,20065900,57.54,National Collections-Historic Properties Department,Electricity
110,DCMS,EH,08/12/2014,British Gas,20065900,25.72,National Collections-Historic Properties Department,Electricity
111,DCMS,EH,08/12/2014,British Gas,20065900,405.3,National Collections-Historic Properties Department,Electricity
112,DCMS,EH,08/12/2014,British Gas,20065900,73.19,National Collections-Historic Properties Department,Electricity
113,DCMS,EH,08/12/2014,British Gas,20065900,102.71,National Collections-Historic Properties Department,Electricity
114,DCMS,EH,08/12/2014,British Gas,20065900,220.28,National Collections-Historic Properties Department,Electricity
115,DCMS,EH,08/12/2014,British Gas,20065900,23.79,National Collections-Historic Properties Department,Electricity
116,DCMS,EH,08/12/2014,British Gas,20065900,109.51,National Collections-Historic Properties Department,Electricity
117,DCMS,EH,08/12/2014,British Gas,20065900,64.16,National Collections-Historic Properties Department,Electricity
118,DCMS,EH,08/12/2014,British Gas,20065900,810.64,National Collections-Historic Properties Department,Electricity
119,DCMS,EH,08/12/2014,British Gas,20065900,240.72,National Collections-Historic Properties Department,Electricity
120,DCMS,EH,08/12/2014,British Gas,20065900,112.32,National Collections-Historic Properties Department,Electricity
121,DCMS,EH,08/12/2014,British Gas,20065900,31.74,National Collections-Historic Properties Department,Electricity
122,DCMS,EH,08/12/2014,British Gas,20065900,12.77,National Collections-Historic Properties Department,Electricity
123,DCMS,EH,17/12/2014,Capita Secure Information Solutions Ltd,40087885,"251,116.75",Resources-IMT,ITFM
124,DCMS,EH,16/12/2014,Capita Secure Information Solutions Ltd,40087886,"34,073.98",Resources-IMT,ITFM
125,DCMS,EH,16/12/2014,CB Richard Ellis Ltd,40087934,"98,977.20",Resources-Office Estate,Building Service Charges
126,DCMS,EH,16/12/2014,CB Richard Ellis Ltd,40087934,"282,600.00",Resources-Office Estate,Rent - Operating Leases
127,DCMS,EH,16/12/2014,CB Richard Ellis Ltd,40087935,"95,010.00",Resources-Office Estate,Rent - Operating Leases
128,DCMS,EH,16/12/2014,CB Richard Ellis Ltd,40087935,"37,394.40",Resources-Office Estate,Building Service Charges
129,DCMS,EH,17/12/2014,Chartered Institute for Archaeologists,81003130,"42,337.46",Heritage Protection & Planning-Heritage Protection,ENABLING PROGRAMMES ENABLING PROGRAMMES
130,DCMS,EH,24/12/2014,Cheshire West & Chester Council,82003499,"300,000.00",Heritage Protection & Planning-Nat. Planning & Conservation,GRANTS PAYABLE HISTORIC BUILDINGS
131,DCMS,EH,24/12/2014,Christ Church PCC,82003495,"27,750.00",Heritage Protection & Planning-Nat. Planning & Conservation,GRANTS PAYABLE PLACES OF WORSHIP
132,DCMS,EH,12/12/2014,Clapham PCC,82003461,"38,250.00",Heritage Protection & Planning-Nat. Planning & Conservation,GRANTS PAYABLE PLACES OF WORSHIP
133,DCMS,EH,10/12/2014,Cleobury Mortimer PCC,82003445,"26,550.00",Heritage Protection & Planning-Nat. Planning & Conservation,GRANTS PAYABLE PLACES OF WORSHIP
134,DCMS,EH,23/12/2014,Custom Works,77000184,"38,137.80",National Collections-Historic Properties Department,Stock Goods and Souvenirs
135,DCMS,EH,03/12/2014,DCC of St Lukes and St Paul's,82003436,"43,000.00",Heritage Protection & Planning-Nat. Planning & Conservation,GRANTS PAYABLE PLACES OF WORSHIP
136,DCMS,EH,12/12/2014,District Church Council Twyford,82003458,"58,000.00",Heritage Protection & Planning-Nat. Planning & Conservation,GRANTS PAYABLE PLACES OF WORSHIP
137,DCMS,EH,09/12/2014,DST Global Insight Group Ltd,40086062,"3,528.00",Resources-IMT,Software Maintenance
138,DCMS,EH,09/12/2014,DST Global Insight Group Ltd,40086062,"16,032.00",Resources-IMT,WIP Systems Development
139,DCMS,EH,09/12/2014,DST Global Insight Group Ltd,40086062,837,Resources-IMT,WIP Systems Development
140,DCMS,EH,09/12/2014,DST Global Insight Group Ltd,40086062,"4,650.00",Resources-IMT,WIP Systems Development
141,DCMS,EH,11/12/2014,Erith Contractors Ltd,40087419,"212,610.00",Heritage Protection & Planning-Nat. Planning & Conservation,Works for Heritage Buildings
142,DCMS,EH,10/12/2014,Fairhurst Ward Abbotts Ltd,40086671,"167,629.85",National Collections-Major Conservation Projects,Planned Maintenance
143,DCMS,EH,22/12/2014,Fairhurst Ward Abbotts Ltd,40087983,"69,305.02",National Collections-Major Conservation Projects,Planned Maintenance
144,DCMS,EH,01/12/2014,Farnworth Parochial Church Council,82003425,"64,500.00",Heritage Protection & Planning-Nat. Planning & Conservation,GRANTS PAYABLE PLACES OF WORSHIP
145,DCMS,EH,01/12/2014,Farnworth Parochial Church Council,82003426,"27,750.00",Heritage Protection & Planning-Nat. Planning & Conservation,GRANTS PAYABLE PLACES OF WORSHIP
146,DCMS,EH,22/12/2014,Forncett PCC,82003485,"47,000.00",Heritage Protection & Planning-Nat. Planning & Conservation,GRANTS PAYABLE PLACES OF WORSHIP
147,DCMS,EH,22/12/2014,G.J. Banks (I.W.) Ltd,40087009,"30,152.94",National Collections-Capital Investment Programme,Fees for Professional Advice
148,DCMS,EH,22/12/2014,G.J. Banks (I.W.) Ltd,40087009,"58,793.46",National Collections-Capital Investment Programme,WIP Professional Works Advice
149,DCMS,EH,15/12/2014,Gillards Worldwide,40087630,"40,853.20",National Collections-Historic Properties Department,Marketing Distribution
150,DCMS,EH,03/12/2014,Grafham PCC,82003439,"38,500.00",Heritage Protection & Planning-Nat. Planning & Conservation,GRANTS PAYABLE PLACES OF WORSHIP
151,DCMS,EH,08/12/2014,Harlow Property Management Ltd,40086812,"54,750.00",Resources-Office Estate,Rent - Operating Leases
152,DCMS,EH,02/12/2014,Historic Property Restoration Ltd,40086507,"35,250.39",National Collections-Property Maintenance Programme,Annual Cyclical Works-Building
153,DCMS,EH,02/12/2014,Historic Property Restoration Ltd,40086507,199.19,National Collections-Property Maintenance Programme,Leased Accomodation Maint
154,DCMS,EH,02/12/2014,Historic Property Restoration Ltd,40086507,"38,593.85",National Collections-Property Maintenance Programme,Annual Cyclical Work M & E
155,DCMS,EH,02/12/2014,Historic Property Restoration Ltd,40086507,"1,803.32",National Collections-Property Maintenance Programme,Annual Cyclical Work M & E
156,DCMS,EH,02/12/2014,Historic Property Restoration Ltd,40086507,"12,678.56",National Collections-Property Maintenance Programme,Annual Cyclical Works-Building
157,DCMS,EH,01/12/2014,Historic Property Restoration Ltd,40086510,"4,860.41",National Collections-Property Maintenance Programme,Planned Maintenance
158,DCMS,EH,01/12/2014,Historic Property Restoration Ltd,40086510,"3,547.88",National Collections-Property Maintenance Programme,Leased Accomodation Maint
159,DCMS,EH,01/12/2014,Historic Property Restoration Ltd,40086510,711.35,National Collections-Property Maintenance Programme,Responsive Repairs M & E
160,DCMS,EH,01/12/2014,Historic Property Restoration Ltd,40086510,"9,912.70",National Collections-Property Maintenance Programme,Responsive Maint Building
161,DCMS,EH,01/12/2014,Historic Property Restoration Ltd,40086510,275.36,National Collections-Property Maintenance Programme,Responsive Maint Building
162,DCMS,EH,01/12/2014,Historic Property Restoration Ltd,40086510,"11,011.66",National Collections-Property Maintenance Programme,Responsive Repairs M & E
163,DCMS,EH,16/12/2014,Knight Frank LLP,40087937,"20,290.86",Resources-Office Estate,Building Service Charges
164,DCMS,EH,16/12/2014,Knight Frank LLP,40087937,"45,353.70",Resources-Office Estate,Rent - Operating Leases
165,DCMS,EH,12/12/2014,Melmerby PCC,82003463,"58,500.00",Heritage Protection & Planning-Nat. Planning & Conservation,GRANTS PAYABLE PLACES OF WORSHIP
166,DCMS,EH,08/12/2014,Messenger Construction Ltd,40084684,"12,007.98",Heritage Protection & Planning-Nat. Planning & Conservation,Works for Heritage Buildings
167,DCMS,EH,08/12/2014,Messenger Construction Ltd,40084684,"17,100.00",Heritage Protection & Planning-Nat. Planning & Conservation,Works for Heritage Buildings
168,DCMS,EH,03/12/2014,Museum of London Arch Services,81003114,"25,000.00",Heritage Protection & Planning-Heritage Protection,ENABLING PROGRAMMES ENABLING PROGRAMMES
169,DCMS,EH,01/12/2014,North Walsham PCC,82003423,"32,800.00",Heritage Protection & Planning-Nat. Planning & Conservation,GRANTS PAYABLE PLACES OF WORSHIP
170,DCMS,EH,02/12/2014,Odgers Berndtson,40085991,"-11,825.44",Resources-Corporate,Recruitment
171,DCMS,EH,02/12/2014,Odgers Berndtson,40085992,"-11,825.44",Resources-Corporate,Recruitment
172,DCMS,EH,10/12/2014,Owlsworth IJP LTD,40086341,"68,903.51",Heritage Protection & Planning-Nat. Planning & Conservation,Works for Heritage Buildings
173,DCMS,EH,22/12/2014,Parochial Church Council of Fangfoss,82003482,"56,250.00",Heritage Protection & Planning-Nat. Planning & Conservation,GRANTS PAYABLE PLACES OF WORSHIP
174,DCMS,EH,03/12/2014,PCC of Kilmersdon & Babington,82003435,"39,600.00",Heritage Protection & Planning-Nat. Planning & Conservation,GRANTS PAYABLE PLACES OF WORSHIP
175,DCMS,EH,22/12/2014,PCC of St Margaret's Hollinwood,82003487,"96,500.00",Heritage Protection & Planning-Nat. Planning & Conservation,GRANTS PAYABLE PLACES OF WORSHIP
176,DCMS,EH,24/12/2014,PCC of St Pauls Church,82003498,"57,600.00",Heritage Protection & Planning-Nat. Planning & Conservation,GRANTS PAYABLE PLACES OF WORSHIP
177,DCMS,EH,17/12/2014,PCC of the Ecclesiastical Parish of,82003469,"52,750.00",Heritage Protection & Planning-Nat. Planning & Conservation,GRANTS PAYABLE PLACES OF WORSHIP
178,DCMS,EH,17/12/2014,PCC of the Ecclesiastical Parish of,82003470,"42,200.00",Heritage Protection & Planning-Nat. Planning & Conservation,GRANTS PAYABLE PLACES OF WORSHIP
179,DCMS,EH,22/12/2014,PCC of the Holy Trinity,82003486,"60,000.00",Heritage Protection & Planning-Nat. Planning & Conservation,GRANTS PAYABLE PLACES OF WORSHIP
180,DCMS,EH,15/12/2014,Quadron Services Ltd,40087705,"2,204.61",National Collections-Property Maintenance Programme,Annual Cyclical Works-Building
181,DCMS,EH,15/12/2014,Quadron Services Ltd,40087705,"12,529.73",National Collections-Property Maintenance Programme,Annual Cyclical Works-Building
182,DCMS,EH,15/12/2014,Quadron Services Ltd,40087705,"11,320.30",National Collections-Property Maintenance Programme,Annual Cyclical Works-Building
183,DCMS,EH,12/12/2014,R H Falkingham & Son,82003466,"60,000.00",Heritage Protection & Planning-Nat. Planning & Conservation,GRANTS PAYABLE HISTORIC BUILDINGS
184,DCMS,EH,10/12/2014,Ratcliffes,40086984,"283,500.00",Resources-Office Estate,Rent - Operating Leases
185,DCMS,EH,08/12/2014,Robert Woodhead Ltd,40086524,"39,833.89",National Collections-Major Conservation Projects,Planned Maintenance
186,DCMS,EH,19/12/2014,Sally Strachey Historic Conservation,40087782,"44,447.81",National Collections-Major Conservation Projects,Fees for Professional Advice
187,DCMS,EH,12/12/2014,Scarborough Borough Council,82003454,"30,489.00",Heritage Protection & Planning-Nat. Planning & Conservation,GRANTS PAYABLE HISTORIC BUILDINGS
188,DCMS,EH,08/12/2014,Specialist Computer Centres plc,40087145,"2,263.20",Resources-IMT,Computer Equipment <10k
189,DCMS,EH,08/12/2014,Specialist Computer Centres plc,40087145,"26,280.60",Resources-IMT,Computer Equipment > 10k
190,DCMS,EH,09/12/2014,Specialist Computer Centres plc,40087204,"34,237.70",Resources-IMT,Software Maintenance
191,DCMS,EH,01/12/2014,St Clement & St James PCC,82003430,"77,850.00",Heritage Protection & Planning-Nat. Planning & Conservation,GRANTS PAYABLE PLACES OF WORSHIP
192,DCMS,EH,22/12/2014,St Georges Hanworth PCC,82003474,"40,619.00",Heritage Protection & Planning-Nat. Planning & Conservation,GRANTS PAYABLE PLACES OF WORSHIP
193,DCMS,EH,03/12/2014,St John the Evangelist PCC,82003438,"38,200.00",Heritage Protection & Planning-Nat. Planning & Conservation,GRANTS PAYABLE PLACES OF WORSHIP
194,DCMS,EH,01/12/2014,St Mary's Church Northiam,82003427,"28,313.00",Heritage Protection & Planning-Nat. Planning & Conservation,GRANTS PAYABLE PLACES OF WORSHIP
195,DCMS,EH,03/12/2014,St Mary's Restoration Fund,82003441,"29,700.00",Heritage Protection & Planning-Nat. Planning & Conservation,GRANTS PAYABLE PLACES OF WORSHIP
196,DCMS,EH,03/12/2014,St Matthew's PCC,82003434,"43,200.00",Heritage Protection & Planning-Nat. Planning & Conservation,GRANTS PAYABLE PLACES OF WORSHIP
197,DCMS,EH,24/12/2014,St Thomas PCC,82003497,"50,011.00",Heritage Protection & Planning-Nat. Planning & Conservation,GRANTS PAYABLE PLACES OF WORSHIP
198,DCMS,EH,24/12/2014,Swafield PCC,82003494,"30,800.00",Heritage Protection & Planning-Nat. Planning & Conservation,GRANTS PAYABLE PLACES OF WORSHIP
199,DCMS,EH,02/12/2014,Team Force Restoration Ltd,40086258,"30,659.86",National Collections-Property Maintenance Programme,Planned Maintenance
200,DCMS,EH,01/12/2014,The Hooton Park Trust,82003431,"35,769.00",Heritage Protection & Planning-Nat. Planning & Conservation,GRANTS PAYABLE HISTORIC BUILDINGS
201,DCMS,EH,17/12/2014,The PCC Church Council of Welwick,82003468,"25,000.00",Heritage Protection & Planning-Nat. Planning & Conservation,GRANTS PAYABLE PLACES OF WORSHIP
202,DCMS,EH,22/12/2014,The Team Brand Communication Consultants,40087776,"34,152.00",Resources-IMT,WIP Systems Development
203,DCMS,EH,22/12/2014,The Team Brand Communication Consultants,40088131,"66,672.00",Resources-IMT,WIP Computer Consultancy
204,DCMS,EH,12/12/2014,UK Historic Building Preservation Trust,82003450,"65,687.00",Heritage Protection & Planning-Nat. Planning & Conservation,GRANTS PAYABLE HISTORIC BUILDINGS
205,DCMS,EH,17/12/2014,Vinci Construction UK Ltd,40086438,"41,529.60",National Collections-Capital Investment Programme,WIP Operational Building Works
206,DCMS,EH,24/12/2014,Vodafone Corporate Ltd,20066773,"47,306.86",Resources-Corporate,Mobile Phone Costs
207,DCMS,EH,15/12/2014,War Memorials Trust,90514058,"66,070.00",Heritage Protection & Planning-Nat. Planning & Conservation,GRANTS PAYABLE OTHER GRANTS
208,DCMS,EH,08/12/2014,William Anelay Limited,40086796,"40,443.60",Heritage Protection & Planning-Nat. Planning & Conservation,Works for Heritage Buildings
